Cogmind - Beta 13 @@@ ROGUE MODE // 2024.04.01 @ 20:27:31 Player: lazy_engineer Result: Destroyed by D-53 Grenadier with Mini Grenade Launcher Performance ------------- Evolutions (1) 500 Regions Visited (3) 600 Robots Destroyed (21) 105 Value Destroyed (355) 355 Prototype IDs (1) 20 Alien Tech Used (0) 0 Bonus (0) 0 TOTAL SCORE: 1580 Bonus ------- None Cogmind --------- Core Integrity 0/400 Matter 271/300 Energy 100/100 System Corruption 0% Temperature Cool (0) Movement Core (150) Ox2 Location -9/Mines Parts ------- > --- POWER (1) -------- (None) > --- PROPULSION (2) --- (None) > --- UTILITY (4) ------ Small Storage Unit Improved Terrain Scanner Terrain Scan Processor > --- WEAPON (2) ------- Datajack Mining Claw > --- INVENTORY (8) ---- Flight Unit Flight Unit Structural Scanner Sensor Array Improved Terrain Scanner Medium Armor Plating Datajack Mining Laser Peak State ------------ > --- POWER ------------ Light Ion Engine > --- PROPULSION ------- Wheel Wheel > --- UTILITY ---------- Small Storage Unit Improved Terrain Scanner Terrain Scan Processor Seismic Detector > --- WEAPON ----------- Improved Assault Rifle Datajack > --- INVENTORY -------- Light Ion Engine Structural Scanner Improved Terrain Scanner Seismic Detector Assault Rifle Datajack Mining Laser Mining Claw [Rating: 15] Favorites ----------- Power Light Ion Engine Engine Light Ion Engine Propulsion Wheel Wheel Wheel Flight Unit Flight Unit Utility Small Storage Unit Device Seismic Detector Storage Small Storage Unit Processor Terrain Scan Processor Weapon Assault Rifle Ballistic Gun Assault Rifle Special Weapon Mining Laser Slashing Weapon Mining Claw Special Melee Weapon Datajack Build | -11 -10 -9 -9 ------- Run | Yrd Mat Mat Min Slots Evolved 2 | . . 2 . Power . | . . . . Propulsion . | . . . . Utility 2 | . . 2 . Weapon . | . . . . Parts Attached 34 | 8 8 14 4 Power 4 | 1 . 2 1 Engine 4 | 1 . 2 1 Core . | . . . . Reactor . | . . . . Propulsion 9 | 2 3 2 2 Treads . | . . . . Leg . | . . . . Wheel 5 | 2 3 . . Hover . | . . . . Flight 4 | . . 2 2 Utility 7 | 3 . 3 1 Device 5 | 2 . 2 1 Storage 1 | 1 . . . Processor 1 | . . 1 . Hackware . | . . . . Protection . | . . . . Artifact . | . . . . Weapon 14 | 2 5 7 . Energy Gun . | . . . . Energy Cannon . | . . . . Ballistic Gun 5 | 2 1 2 . Ballistic Cannon . | . . . . Launcher . | . . . . Special Weapon 2 | . 1 1 . Impact Weapon . | . . . . Slashing Weapon 4 | . 2 2 . Piercing Weapon . | . . . . Special Melee Weapon 3 | . 1 2 . Unidentified Prototypes 1 | . . 1 . Parts Lost 11 | . . 5 6 Power 3 | . . 1 2 Propulsion 5 | . . 2 3 Utility 2 | . . 1 1 Weapon 1 | . . 1 . Highest Loss Streak 4 | . . 4 4 To Critical Strikes . | . . . . Average Slot Usage (%) 99 | . 100 98 98 Engine 10 | . 14 10 10 Wheel 14 | . 28 20 . Flight 8 | . . 1 22 Device 20 | . 14 21 22 Storage 11 | . 14 11 11 Processor 9 | . . 10 11 Ballistic Gun 8 | . 27 10 . Slashing Weapon 4 | . . 1 11 Special Melee Weapon 9 | . . 10 11 Naked Turns . | . . . . Heaviest Build 18 | 13 13 18 13 Greatest Support 32 | 32 32 20 8 Greatest Overweight (x) 5 | . . 5 1 Average Overweight (x) . | . . . 1 Largest Inventory Capacity 8 | 8 8 8 8 Average Capacity 7 | 7 8 8 8 Most Carried 8 | 8 8 8 8 Average Carried 6 | 3 7 6 7 Final Capacity 8 | 8 8 8 8 Final Carried 8 | 8 8 5 8 Class Distribution -------------------- 82% | Scavenger-Mutant 17% | Mutant Dominant Class ---------------- Mutant | -10/Materials Scavenger-Mutant | -9/Materials Scavenger-Mutant | -9/Mines Resources | -11 -10 -9 -9 ----------- Run | Yrd Mat Mat Min Matter Collected 543 | 218 21 173 131 Remotely . | . . . . Salvage Created 557 | 142 21 295 99 Parts 55 | 16 3 20 16 Haulers Intercepted . | . . . . Recyclers Shooed 1 | 1 . . . Parts Field Recycled . | . . . . Retrieved Matter . | . . . . Parts Self-Destructed . | . . . . Prevented . | . . . . Kills | -11 -10 -9 -9 ------- Run | Yrd Mat Mat Min Combat Hostiles Destroyed 15 | . . 9 6 Melee 13 | . . 7 6 Guns 1 | . . 1 . Cannons 1 | . . 1 . Classes Destroyed 6 | 2 1 3 . Builder 1 | . 1 . . Tunneler 4 | 4 . . . Recycler 1 | 1 . . . Swarmer 9 | . . 3 6 Grunt 4 | . . 4 . Sentry 2 | . . 2 . Best Kill Streak 6 | 4 1 6 3 Combat Bots Only 6 | . . 6 3 Max Kills in Single Turn 1 | 1 1 1 1 Gunslinging . | . . . . Exploded . | . . . . Melee 1 | . . 1 1 Uniques/NPCs Destroyed . | . . . . Combat | -11 -10 -9 -9 -------- Run | Yrd Mat Mat Min Hostile Shots Fired 128 | . . 78 50 Missed 41 | . . 25 16 Damage Taken 924 | . . 507 417 Core 402 | . . 183 219 Absorbed by Shields . | . . . . Core Remaining (%) 100 | 100 100 . . Volleys Fired 18 | 11 1 6 . Largest 2 | 2 2 1 . Hottest 100 | 40 40 100 . Shots Fired 30 | 22 2 6 . Gun 29 | 22 2 5 . Cannon . | . . . . Launcher . | . . . . Special 1 | . . 1 . Kinetic 29 | 22 2 5 . Thermal 1 | . . 1 . Explosive . | . . . . Electromagnetic . | . . . . Robot Hit Streak 2 | 2 1 2 . Robot Miss Streak 3 | 3 1 2 . Penetration Max . | . . . . Secondary Targets . | . . . . Shots Hit Robots 46 | 8 1 24 13 Core Hits 22 | 6 1 9 6 Critical Kills 1 | 1 . . . Critical Parts Destroyed . | . . . . Critical Strikes 1 | 1 . . . Destroy 1 | 1 . . . Melee Attacks 48 | . . 25 23 Impact . | . . . . Slashing 34 | . . 15 19 Piercing . | . . . . Sneak Attacks 14 | . . 9 5 Combat Hostiles . | . . . . Follow-up Attacks . | . . . . Damage Inflicted 656 | 99 11 313 233 Guns 137 | 99 11 27 . Cannons . | . . . . Explosions . | . . . . Melee 495 | . . 262 233 Ramming . | . . . . Kinetic 137 | 99 11 27 . Thermal 24 | . . 24 . Explosive . | . . . . Electromagnetic . | . . . . Impact . | . . . . Slashing 495 | . . 262 233 Piercing . | . . . . Highest Corruption . | . . . . Average Corruption . | . . . . Corruption Purged . | . . . . Corruption Blocked . | . . . . Overload Shots . | . . . . Overflow Damage 5 | . . . 5 Projectiles . | . . . . Explosions . | . . . . Melee 5 | . . . 5 Knockbacks . | . . . . Impact . | . . . . Kinetic . | . . . . Secondary . | . . . . Self-Inflicted Damage . | . . . . Shots . | . . . . Rammed . | . . . . Targets Rammed . | . . . . Kicked . | . . . . Crushed . | . . . . Highest Temperature 20 | . . 20 . Average Temperature 12 | . . 12 . Received Heat Transfer 120 | . . 120 . Siege Activations . | . . . . Robots Corrupted . | . . . . Combat Hostiles . | . . . . Parts Fried . | . . . . Impact Corruptions . | . . . . Robots Melted . | . . . . Combat Hostiles . | . . . . Parts Melted . | . . . . Heat Transferred 50 | . . 50 . Parts Sabotaged . | . . . . Parts Stolen . | . . . . Parts Stripped . | . . . . Power Chain Reactions . | . . . . Alert | -11 -10 -9 -9 ------- Run | Yrd Mat Mat Min Peak Influence 247 | 25 48 225 247 Initial 87 | . 16 20 87 Average 51 | 15 23 25 109 Maximum Alert Level 1 | . . 1 1 Low Security (%) 90 | 100 100 95 77 Level 1 9 | . . 4 22 Level 2 . | . . . . Level 3 . | . . . . Level 4 . | . . . . Level 5 . | . . . . High Security . | . . . . Max Security . | . . . . Squads Dispatched 3 | . 1 2 . Investigation 1 | . 1 . . Extermination . | . . . . Reinforcement 2 | . . 2 . Assault . | . . . . Garrison . | . . . . Intercept . | . . . . Searches Triggered . | . . . . Construction Impeded . | . . . . Haulers Reinforced . | . . . . Active Scanning Responses . | . . . . Cargo Convoy Interrupts . | . . . . Stealth | -11 -10 -9 -9 --------- Run | Yrd Mat Mat Min Distress Signals 3 | . . 3 . Communications Jammed . | . . . . Distress Signals . | . . . . Times Spotted 33 | . 1 22 10 Peak Tracking Total 7 | . 1 7 4 Tactical Retreats 3 | . . 1 2 Traps | -11 -10 -9 -9 ------- Run | Yrd Mat Mat Min Traps Triggered . | . . . . Indirectly . | . . . . Trap Hack Attempts . | . . . . Triggered . | . . . . Disarmed . | . . . . Reprogrammed . | . . . . Reused . | . . . . Traps Extracted . | . . . . Installed . | . . . . Triggered . | . . . . Machines | -11 -10 -9 -9 ---------- Run | Yrd Mat Mat Min Machines Disabled . | . . . . Max in Single Turn . | . . . . Machines Repaired . | . . . . Machines Dismantled . | . . . . Machines Sabotaged . | . . . . Overloaded Fab Kills . | . . . . Hacking | -11 -10 -9 -9 --------- Run | Yrd Mat Mat Min Machines Accessed 6 | . 3 1 2 Terminals 4 | . 2 . 2 Fabricators . | . . . . Repair Stations . | . . . . Recycling Units 1 | . 1 . . Scanalyzers 1 | . . 1 . Garrison Access . | . . . . Total Hacks 15 | . 6 4 5 Successful 8 | . 3 4 1 Failed 7 | . 3 . 4 Catastrophic . | . . . . Database Lockouts . | . . . . Manual . | . . . . Terminals 10 | . 5 . 5 Fabricators . | . . . . Repair Stations . | . . . . Recycling Units 1 | . 1 . . Scanalyzers 4 | . . 4 . Garrison Access . | . . . . Terminal Hacks 3 | . 2 . 1 Scanalyzer Index 1 | . 1 . . Zone Layout 2 | . 1 . 1 Fabricator Hacks . | . . . . Repair Station Hacks . | . . . . Recycling Unit Hacks 1 | . 1 . . Report Inventory 1 | . 1 . . Scanalyzer 4 | . . 4 . Insert Component 2 | . . 2 . Analyze 2 | . . 2 . Garrison Access Hacks . | . . . . Unauthorized Hacks . | . . . . Terminals . | . . . . Fabricators . | . . . . Repair Stations . | . . . . Recycling Units . | . . . . Scanalyzers . | . . . . Garrison Access . | . . . . Data Cores Recovered . | . . . . Used . | . . . . Hacking Detections 3 | . 1 . 2 Full Trace Events 1 | . 1 . . Feedback Events . | . . . . Feedback Blocked . | . . . . Robot Schematics Acquired . | . . . . Robots Built . | . . . . Authchips . | . . . . Time . | . . . . Total Robot Build Rating . | . . . . Part Schematics Acquired 2 | . . 2 . Parts Built . | . . . . Authchips . | . . . . Time . | . . . . Total Part Build Rating . | . . . . Parts Repaired . | . . . . Time . | . . . . Parts Recycled . | . . . . Recycled Matter . | . . . . Retrieved Matter . | . . . . Retrieved Components . | . . . . Parts Scanalyzed 2 | . . 2 . Part Schematics Acquired 2 | . . 2 . Parts Damaged . | . . . . Bothacking | -11 -10 -9 -9 ------------ Run | Yrd Mat Mat Min Used RIF Installer . | . . . . Robots Hacked 9 | . . 6 3 Non-combat 9 | . . 6 3 Combat . | . . . . Robot Hacks Applied 10 | . . 7 3 no_distress 7 | . . 4 3 find_recycling 1 | . . 1 . check_alert 2 | . . 2 . Relay Couplers Released . | . . . . Fabnet Peak Effective % . | . . . . Robots Rewired . | . . . . Allies Hacked . | . . . . Hacks Repelled . | . . . . Allies | -11 -10 -9 -9 -------- Run | Yrd Mat Mat Min Total Allies . | . . . . Largest Group . | . . . . Highest-Rated Group . | . . . . Highest-Rated Ally . | . . . . Total Orders . | . . . . Ally Attacks . | . . . . Total Damage . | . . . . Kills . | . . . . Allies Corrupted . | . . . . Allies Melted . | . . . . Intel | -11 -10 -9 -9 ------- Run | Yrd Mat Mat Min Robot Analysis Total . | . . . . Derelict Logs Recovered . | . . . . Drone Launches . | . . . . Drone Recoveries . | . . . . Exploration | -11 -10 -9 -9 ------------- Run | Yrd Mat Mat Min Turns Passed 2848 | 149 309 1491 899 Spaces Moved 717 | 93 171 180 273 Core 7 | 3 . 4 . Treads . | . . . . Legs . | . . . . Wheels 402 | 90 171 141 . Hover . | . . . . Flight 308 | . . 35 273 Fastest Speed 50 | 50 80 80 117 Average Speed 102 | 98 84 97 117 Slowest Speed 300 | 100 100 300 117 Overloaded Moves . | . . . . Propulsion Burnouts . | . . . . Robots Hopped . | . . . . Cave-ins Triggered . | . . . . Exploration Rate (%) 24 | 4 25 18 52 Regions Visited 3 Branch Regions 1 Pre-discovered Areas . | . . . . Known Exits Taken . | . . . . Unknown Exits Taken 3 | 1 1 1 . Scrap Searched 1 | . . . 1 Spaces Dug . | . . . . Terrain Destroyed . | . . . . Melee . | . . . . Projectile . | . . . . AOE . | . . . . Terrain Rammed . | . . . . Walls Destroyed . | . . . . Machines Disabled . | . . . . Actions | -11 -10 -9 -9 --------- Run | Yrd Mat Mat Min Total 2724 | 129 332 1450 813 Wait 1869 | . 143 1219 507 Move 714 | 92 170 179 273 Hop . | . . . . Pick Up 29 | 16 4 4 5 Fast Attach 3 | . 1 2 . Attach 18 | 8 . 8 2 Detach 2 | 1 . 1 . Swap 13 | . 7 4 2 Drop 10 | 1 6 2 1 Fire 18 | 11 1 6 . Melee 48 | . . 25 23 Ram . | . . . . Kick . | . . . . Crush . | . . . . Escape Stasis . | . . . . Rewire . | . . . . Trap . | . . . . Miscellaneous . | . . . . Route ------- -11/Scrapyard -10/Materials -9/Materials -9/Mines (discovered 1 exit: [Mat]) History --------- Turn | Location | Event 21 | -11/Scrapyard | Discovered new exit (range 16) 150 | -11/Scrapyard | Entered Materials 309 | -10/Materials | Build established: Mutant 457 | -10/Materials | Discovered new exit (range 3) 459 | -10/Materials | Entered another Materials area 459 | -9/Materials | Evolved 2 slots: Utility x2 747 | -9/Materials | Build established: Scavenger-Mutant 1903 | -9/Materials | Lost 4 parts (2n1u1w) 1922 | -9/Materials | Discovered new exit (range 16) 1950 | -9/Materials | Entered Mines 1963 | -9/Mines | Core integrity fell below 50% 2116 | -9/Mines | Assembled infested the area 2752 | -9/Mines | Discovered new exit (range 10) 2841 | -9/Mines | Core integrity fell below 20% 2849 | -9/Mines | Destroyed by D-53 Grenadier with Mini Grenade Launcher Last Messages --------------- Acquired 24 matter. K-01 Serf collects debris. R-06 Scavenger collects Lgt. Assault Rifle. R-06 Scavenger collects Lgt. Ion Engine. R-06 Scavenger collects Lgt. Assault Rifle. K-01 Serf collects debris. S-10 Pest destroyed. Acquired 14 matter. Dropped Flight Unit. U-05 Engineer lays Concrete. EXIT=FOUND K-01 Serf cleans the Matter Pump. U-05 Engineer lays Concrete. Flight Unit destroyed. U-05 Engineer lays Concrete. The unstable cave ceiling collapses. U-05 Engineer lays Concrete. Lgt. Ion Engine destroyed. Seismic Detector destroyed. U-05 Engineer lays Concrete. Map ----- +----------------------------------------------------+ | #### """" # ##### ######## """ | | ### # % """ | | ###### ### % ##### # | | ######[### #?#?## ############ ## | | =[= == #?##### ####?##????## #### | | ## ######## """ #### #######??###########? | | ##*######## """ T### ##?####?????###?###?# | | ## ### ## """ #### #####?##??#?###?#???#### | | ## ############ ######??###???#??#?###?# | | ## #######?### ###?##????#?#####???##?# | | ### ##?######### ###?#?##??#?#?#?#?####? | | #### ######?##### ###?#??##??#??##??#??# | | ##### ############ ##?###??????######?## | | ##?## #########?### ##?#?#??#???##???### | | ##### ###?######### t ###?#?????##???##### | | ###### ########### ##????#???#?#??#??? | | ##?### ##### #?#??#???#?????### | | ##### ### """ ## #?##??#?#????#?#?# | | # ## """ #### ##????????????????# | | ## k""" ######?????????????????# | | ## u###?????#???#????????#?? | | ### ##??#????????????????? | | ##### #???????????????????? | | ##### ##??????????????????? | | #### ###### ##??#????#??????????? | | ##### ## ###### @ #???#??????????????? | | ###### #### ###### d #??#??#????????????? | | #### #### ###### ##??????#???????????? | | ### ###### # ?? ????#??????????? | | ### ######## # ####???????#???????????? | | ##### #?######?#?### #?#????????????????????? | | ######## ###############r#?????? ???????????????? | | ################?######## ##???#?????????????????? | | ######?##T###?##?######## ????#?????????????????? | | ?## ############?##??????????????????????? | | ### """ """ ############????#????????????????????? | | ### ""? """ #?##########?????????????????????????? | | ### """ """ #####?#####????????? ? ??????????????? | | ### ###########?#????????????????????????? | | ?## """ ? ##?####?##???????????????????????????? | | ### ?"" ###?######?#?????????????????????????? | | ### """